Cogmind - Beta 16 @@@ ROGUE MODE // 2025.12.14 @ 01:54:50 Player: Kat Result: Destroyed by Y-45 Defender with Heavy Assault Rifle Performance ------------- Evolutions (1) 500 Regions Visited (2) 400 Robots Destroyed (34) 170 Value Destroyed (625) 625 Prototype IDs (0) 0 Alien Tech Used (0) 0 Bonus (0) 0 TOTAL SCORE: 1695 Bonus ------- None Cogmind --------- Core Integrity 0/400 Matter 275/300 Energy 160/160 System Corruption 4% Temperature Cool (9) Movement Treading (160) Location -9/Materials Parts ------- > --- POWER (1) -------- Light Nuclear Core > --- PROPULSION (2) --- Light Treads > --- UTILITY (4) ------ Visual Processing Unit Visual Processing Unit Hardened Light Armor Plating > --- WEAPON (2) ------- Heavy Mace (fused) Heavy Flail > --- INVENTORY (5) ---- Heavy Mace Heavy Flail Heavy Flail Heavy Flail Peak State ------------ > --- POWER ------------ Light Nuclear Core > --- PROPULSION ------- Light Treads > --- UTILITY ---------- Visual Processing Unit Visual Processing Unit Hardened Light Armor Plating > --- WEAPON ----------- Heavy Mace Heavy Flail > --- INVENTORY -------- Heavy Mace Heavy Flail Heavy Flail Heavy Flail [Rating: 17] Favorites ----------- Power Light Ion Engine Engine Light Ion Engine Power Core Light Nuclear Core Propulsion Light Treads Treads Light Treads Utility Heat Sink Device Heat Sink Processor Visual Processing Unit Protection Hardened Light Armor Plating Weapon Light Assault Rifle Ballistic Gun Light Assault Rifle Ballistic Cannon Light Cannon Launcher Mini Grenade Launcher Impact Weapon Heavy Mace Build | -11 -10 -9 ------- Run | Yrd Mat Mat Slots Evolved 2 | . . 2 Power . | . . . Propulsion . | . . . Utility 2 | . . 2 Weapon . | . . . Parts Attached 26 | 5 6 15 Power 4 | . . 4 Engine 3 | . . 3 Core 1 | . . 1 Reactor . | . . . Propulsion 4 | 2 . 2 Treads 4 | 2 . 2 Leg . | . . . Wheel . | . . . Hover . | . . . Flight . | . . . Utility 6 | 1 2 3 Device 3 | 1 2 . Storage . | . . . Processor 2 | . . 2 Hackware . | . . . Protection 1 | . . 1 Artifact . | . . . Weapon 12 | 2 4 6 Energy Gun . | . . . Energy Cannon . | . . . Ballistic Gun 2 | 2 . . Ballistic Cannon 1 | . 1 . Launcher 4 | . 3 1 Special Weapon . | . . . Impact Weapon 5 | . . 5 Slashing Weapon . | . . . Piercing Weapon . | . . . Special Melee Weapon . | . . . Unidentified Prototypes . | . . . Corrupted Parts 1 | . . 1 System Corruption 2 | . . 2 Parts Lost 4 | . . 4 Power 2 | . . 2 Propulsion 1 | . . 1 Utility 1 | . . 1 Weapon . | . . . Highest Loss Streak 3 | . . 3 To Critical Strikes . | . . . Average Backups 3 | 2 3 4 Power . | 1 2 . Propulsion . | . . . Utility . | . . . Weapon 2 | . . 3 Tool/Special . | . . . Unused Backups 5 | . 1 4 Power . | . . . Propulsion . | . . . Utility 1 | . 1 . Weapon 4 | . . 4 Tool/Special . | . . . Average Slot Usage (%) 68 | . 83 61 Engine 4 | . . 6 Core 1 | . . 2 Treads 19 | . 28 15 Device 14 | . 26 9 Processor 6 | . . 9 Ballistic Cannon 2 | . 6 . Launcher 7 | . 18 3 Impact Weapon 10 | . . 15 Peak Build Rating 17 | 7 8 17 Average Rating 8 | 4 7 10 On Entrance 5 | . 7 8 Avg Prop Armor Cover (%) . | . . . Naked Turns . | . . . Heaviest Build 16 | 3 8 16 Greatest Support 40 | 40 40 40 Greatest Overweight (x) . | . . . Average Overweight (x) . | . . . Largest Inventory Capacity 5 | 5 5 5 Average Capacity 5 | 5 5 5 Most Carried 5 | 4 5 5 Average Carried 3 | 2 3 4 Final Capacity 5 | 5 5 5 Final Carried 4 | 3 4 4 Class Distribution -------------------- 100% | Mutant Dominant Class ---------------- Mutant | -10/Materials Mutant | -9/Materials Resources | -11 -10 -9 ----------- Run | Yrd Mat Mat Matter Collected 748 | 314 14 420 Remotely . | . . . Salvage Created 716 | 195 48 473 Parts 57 | 20 16 21 Haulers Intercepted . | . . . Recyclers Shooed 1 | 1 . . Parts Field Recycled . | . . . Retrieved Matter . | . . . Parts Self-Destructed . | . . . Prevented . | . . . Parts Restored . | . . . Kills | -11 -10 -9 ------- Run | Yrd Mat Mat Combat Hostiles Destroyed 17 | . 4 13 Melee 6 | . . 6 AOE 5 | . 4 1 Classes Destroyed 10 | 3 5 2 Worker 7 | 2 2 3 Builder 1 | . 1 . Tunneler 5 | 5 . . Recycler 1 | 1 . . Mechanic 1 | . 1 . Watcher 2 | . 1 1 Swarmer 7 | . 3 4 Grunt 7 | . 1 6 Brawler 1 | . . 1 Sentry 2 | . . 2 Best Kill Streak 5 | 2 5 4 Combat Bots Only 4 | . 3 4 Max Kills in Single Turn 3 | 1 3 2 Gunslinging . | . . . Exploded 3 | . 3 1 Melee 2 | . . 2 Uniques/NPCs Destroyed . | . . . Combat | -11 -10 -9 -------- Run | Yrd Mat Mat Hostile Shots Fired 125 | . 5 120 Missed 28 | . 2 26 Hits 97 | . 3 94 Melee 3 | . . 3 Projectile 94 | . 3 91 AOE 1 | . . 1 Critical Strikes 5 | . . 5 Damage Taken 1337 | . 51 1286 Core 418 | . 10 408 Absorbed by Shields . | . . . Regen/Repaired (Parts) 262 | . . 262 Core Remaining (%) 98 | 100 96 . Volleys Fired 46 | 32 12 2 Largest 2 | 2 2 2 Hottest 60 | 40 60 60 Shots Fired 90 | 64 23 3 Gun 64 | 64 . . Cannon 8 | . 8 . Launcher 18 | . 15 3 Special . | . . . Kinetic 72 | 64 8 . Thermal . | . . . Explosive 18 | . 15 3 Electromagnetic . | . . . Robot Hit Streak 5 | 5 4 . Robot Miss Streak 3 | 3 1 . Penetration Max . | . . . Secondary Targets . | . . . Shots Hit Robots 72 | 41 5 26 Core Hits 33 | 17 10 6 Critical Kills . | . . . Critical Parts Destroyed 1 | . . 1 Critical Strikes 1 | . . 1 Smash 1 | . . 1 Melee Attacks 44 | . . 44 Impact 44 | . . 44 Slashing . | . . . Piercing . | . . . Sneak Attacks 5 | . . 5 Combat Hostiles . | . . . Follow-up Attacks 6 | . . 6 Damage Inflicted 2124 | 343 505 1276 Guns 343 | 343 . . Cannons . | . . . Explosions 599 | . 505 94 Melee 1182 | . . 1182 Ramming . | . . . Kinetic 343 | 343 . . Thermal . | . . . Explosive 599 | . 505 94 Electromagnetic . | . . . Impact 1182 | . . 1182 Slashing . | . . . Piercing . | . . . Highest Corruption 4 | . 1 4 Average Corruption 3 | . 1 3 Corruption Purged . | . . . Corruption Blocked . | . . . Effects 13 | . 2 11 Message Errors 4 | . . 4 Matter Fused 6 | . 1 5 Parts Fused 1 | . . 1 Data Loss (minor) 2 | . 1 1 Overload Shots . | . . . Overflow Damage 358 | . 21 337 Projectiles . | . . . Explosions 21 | . 21 . Melee 337 | . . 337 Knockbacks 2 | . . 2 Impact 2 | . . 2 Kinetic . | . . . Secondary . | . . . Self-Inflicted Damage 25 | . . 25 Shots 1 | . . 1 Rammed . | . . . Targets Rammed . | . . . Kicked . | . . . Crushed . | . . . Highest Temperature 9 | . . 9 Average Temperature 6 | . . 6 Received Heat Transfer 474 | . 12 462 Siege Activations . | . . . Martial Activations . | . . . Shielding Activations . | . . . Robots Disrupted . | . . . Combat Hostiles . | . . . Robots Corrupted 7 | . . 7 Combat Hostiles 6 | . . 6 Parts Fried 14 | . . 14 Impact Corruptions 16 | . . 16 Robots Melted . | . . . Combat Hostiles . | . . . Parts Melted . | . . . Heat Transferred . | . . . Parts Sabotaged . | . . . Parts Stolen . | . . . Parts Stripped . | . . . Power Chain Reactions . | . . . Alert | -11 -10 -9 ------- Run | Yrd Mat Mat Maximum Alert Level . | . . . Low Security (%) 100 | 100 100 100 Level 1 . | . . . Level 2 . | . . . Level 3 . | . . . Level 4 . | . . . Level 5 . | . . . High Security . | . . . Max Security . | . . . Peak Influence 125 | 5 125 107 Initial 44 | . . 44 Average 43 | . 70 49 Influence Increases 732 | 40 275 417 Destroy 0b10 Robot/C 340 | . 80 260 Destroy 0b10 Robot/NC 85 | 40 25 20 Destroy Leader 64 | . 12 52 Successful Hack 12 | . . 12 Disable Machine 120 | . 75 45 Destroy Structure 96 | . 83 13 Lose Combat Pursuer 15 | . . 15 Influence Decreases 685 | 40 170 475 Entered New Map 61 | . . 61 Time Decay 589 | 40 170 379 Lost Part 35 | . . 35 Squads Dispatched 1 | . . 1 Investigation 1 | . . 1 Extermination . | . . . Reinforcement . | . . . Assault . | . . . Garrison . | . . . Intercept . | . . . Searches Triggered . | . . . Construction Impeded . | . . . Haulers Reinforced . | . . . Active Scanning Responses . | . . . Cargo Convoy Interrupts . | . . . Stealth | -11 -10 -9 --------- Run | Yrd Mat Mat Distress Signals 1 | . . 1 Communications Jammed . | . . . Distress Signals . | . . . Times Spotted 27 | . 7 20 Peak Tracking Total 5 | . 1 5 Tactical Retreats 1 | . . 1 Traps | -11 -10 -9 ------- Run | Yrd Mat Mat Traps Triggered 1 | . 1 . Indirectly . | . . . Trap Hack Attempts . | . . . Triggered . | . . . Disarmed . | . . . Reprogrammed . | . . . Reused . | . . . Traps Extracted . | . . . Installed . | . . . Triggered . | . . . Machines | -11 -10 -9 ---------- Run | Yrd Mat Mat Machines Disabled 8 | . 5 3 Max in Single Turn 2 | . 2 2 Machines Repaired . | . . . Machines Dismantled . | . . . Machines Sabotaged . | . . . Overloaded Fab Kills . | . . . Hacking | -11 -10 -9 --------- Run | Yrd Mat Mat Machines Accessed 3 | . . 3 Terminals . | . . . Fabricators . | . . . Repair Stations 2 | . . 2 Recycling Units . | . . . Scanalyzers 1 | . . 1 Garrison Access . | . . . Total Hacks 19 | . . 19 Successful 12 | . . 12 Failed 7 | . . 7 Catastrophic . | . . . Database Lockouts . | . . . Manual . | . . . Terminals . | . . . Fabricators . | . . . Repair Stations 15 | . . 15 Recycling Units . | . . . Scanalyzers 4 | . . 4 Garrison Access . | . . . Terminal Hacks . | . . . Fabricator Hacks . | . . . Repair Station Hacks 9 | . . 9 Scan Component 5 | . . 5 Repair 4 | . . 4 Recycling Unit Hacks . | . . . Scanalyzer 3 | . . 3 Retrieve Study 3 | . . 3 Garrison Access Hacks . | . . . Unauthorized Hacks . | . . . Terminals . | . . . Fabricators . | . . . Repair Stations . | . . . Recycling Units . | . . . Scanalyzers . | . . . Garrison Access . | . . . Data Cores Recovered . | . . . Used . | . . . Hacking Detections 3 | . . 3 Full Trace Events 3 | . . 3 Feedback Events . | . . . Feedback Blocked . | . . . Robot Schematics Acquired . | . . . Robots Built . | . . . Authchips . | . . . Time . | . . . Total Robot Build Rating . | . . . Part Schematics Acquired . | . . . Parts Built . | . . . Authchips . | . . . Time . | . . . Total Part Build Rating . | . . . Part Studies Acquired 3 | . . 3 Parts Repaired 3 | . . 3 Time 146 | . . 146 Parts Recycled . | . . . Recycled Matter . | . . . Retrieved Matter . | . . . Retrieved Components . | . . . Parts Scanalyzed . | . . . Part Schematics Acquired . | . . . Parts Damaged . | . . . Bothacking | -11 -10 -9 ------------ Run | Yrd Mat Mat Used RIF Installer . | . . . Robots Hacked . | . . . Non-combat . | . . . Combat . | . . . Robot Hacks Applied . | . . . Relay Couplers Released . | . . . Fabnet Peak Effective % . | . . . Robots Rewired . | . . . Allies Hacked . | . . . Hacks Repelled . | . . . Allies | -11 -10 -9 -------- Run | Yrd Mat Mat Total Allies . | . . . Largest Group . | . . . Highest-Rated Group . | . . . Highest-Rated Ally . | . . . Total Orders . | . . . Ally Attacks . | . . . Total Damage . | . . . Kills . | . . . Allies Corrupted . | . . . Allies Melted . | . . . Intel | -11 -10 -9 ------- Run | Yrd Mat Mat Active Infowar (turns) 1368 | 83 383 902 Optics 776 | . . 776 Terrain 251 | 83 168 . Seismic 491 | . 215 276 Robot Analysis Total . | . . . Derelict Logs Recovered . | . . . Drone Launches . | . . . Drone Recoveries . | . . . Exploration | -11 -10 -9 ------------- Run | Yrd Mat Mat Turns Passed 1650 | 365 383 902 Spaces Moved 751 | 172 199 380 Core 5 | 5 . . Treads 746 | 167 199 380 Legs . | . . . Wheels . | . . . Hover . | . . . Flight . | . . . Fastest Speed 50 | 50 160 160 Average Speed 159 | 156 160 160 Slowest Speed 160 | 160 160 160 Overloaded Moves . | . . . Propulsion Burnouts . | . . . Robots Hopped . | . . . Potential Cave-ins . | . . . Cave-ins Triggered . | . . . Exploration Rate (%) 28 | 10 43 31 Regions Visited 2 Branch Regions . Pre-discovered Areas . | . . . Known Exits Taken . | . . . Unknown Exits Taken 2 | 1 1 . Scrap Searched . | . . . Spaces Dug . | . . . Terrain Destroyed 98 | . 86 12 Melee . | . . . Projectile . | . . . AOE 98 | . 86 12 Terrain Rammed . | . . . Walls Destroyed . | . . . Machines Disabled . | . . . Actions | -11 -10 -9 --------- Run | Yrd Mat Mat Total 1062 | 216 242 604 Wait 162 | . 12 150 Move 749 | 171 198 380 Hop . | . . . Pick Up 28 | 8 8 12 Fast Attach 4 | . . 4 Attach 16 | 5 3 8 Detach . | . . . Swap 8 | . 3 5 Drop 12 | . 6 6 Fire 46 | 32 12 2 Melee 37 | . . 37 Ram . | . . . Kick . | . . . Crush . | . . . Escape Stasis . | . . . Rewire . | . . . Trap . | . . . Miscellaneous . | . . . Route ------- -11/Scrapyard -10/Materials (discovered 2 exits: *Mat / [*Min]) -9/Materials History --------- Turn | Location | Event 18 | -11/Scrapyard | Discovered new exit (range 15) 366 | -11/Scrapyard | Entered Materials 367 | -10/Materials | Build established: Mutant 631 | -10/Materials | Discovered new exit (range 8) 689 | -10/Materials | Discovered new exit (range 7) 749 | -10/Materials | Entered another Materials area 749 | -9/Materials | Evolved 2 slots: Utility x2 1073 | -9/Materials | Lost 3 parts (1p1n1u) 1191 | -9/Materials | Core integrity fell below 50% 1297 | -9/Materials | Repaired Lgt. Treads+ 1337 | -9/Materials | Repaired Hvy. Flail 1464 | -9/Materials | Core integrity fell below 20% 1559 | -9/Materials | Repaired Hvy. Mace 1651 | -9/Materials | Destroyed by Y-45 Defender with Heavy Assault Rifle Last Messages --------------- 01497_ Acquired 85 matter. 01499_ K-01 Serf collects debris. 01521_ Connecting with Repair Station... >>Scan(Hvy. Mace) Scanning Hvy. Mace... Ready to Repair: Hvy. Mace Rating: 3 Time: 38 >>Repair Repairing Hvy. Mace... ETC: 38 01531_ System corrupted: Hvy. Mace fused. 01559_ Repair station completes Hvy. Mace repairs. 01559_ Acquired Hvy. Mace. 01624_ W-16 Scout sends out distress signal. 01636_ Acquired Visual Processing Unit. 01642_ Acquired Hrd. Light Armor Plating. 01644_ System corrupted: Matter fused (-5). Map ----- +----------------------------------------------------+ | ?????????????????????????????????????????????????? | | ?????????????????????????????????????????????????? | | ?????????????????????????????????????????????????? | | ?????????????????????????????????????????????????? | | ?????????????????????????????????????????????????? | | ?????????????????????????????????????????????????? | | ?????????????????????????????????????????????????? | | ??????????????????????????????????????????#??????? | | ??????????????????????????????????????????# ?????? | | ??????????????????????????????????????????# ????? | | ?????????????????????????????????????????## ???? | | ?????????????????????????????????????????#[ ### | | ?????????????????????????????????????????# | | ?????????????????????????????????????????# [ | | ?????????????????????????????????????????# ^=% | | ?????????????????????????????????????????# ! ### | | ?????????????????????????????????????????????????? | | ?????????????????????????????????????????????????? | | ???????????????????????????????????????????####### | | ?????????????#?????????????????????????????# | | ?????????????# ##+######################## | | ?????????????+ | | ?????????????# ################## | | ?????????????# #????????????????? | | ?????????????# ##+#####Y#######?????#######????? | | ?????????????????????# @ #???????# % ###### | | ?????????????????????# #???????# | | ?????????????????????# #???????# | | ?????????????????????# """ #???????# | | ?????????????????????# """"" #???????# # | | ?????????????????????# """"" #???????## ## | | ?????????????????????# """"" #????????# ##! | | ?????????????????????# """ #????????# ###!!!! | | ?????????????????????# #????????# #?##### | | ?????????????????????##########????????# #?????? | | ???????????????????????????????????????# #?????? | | ???????????????????????????????????????# #?????? | | ???????????????????????????????????????# #####?? | | ???????????????????????????????????????# # # ### | | ???????????????????????????????????????# # | | ??????????????????????????###+########## #= | | ???????????????????????? ^ #% | | ???????????????????????? ^ #[ | | ???????????????????????? ^^ | | ??????????????????????????############## | | ???????????????????????????????????????# # | | ???????????????????????????????????????# # | | ???????????????????????????????????????# | | ???????????????????????????????????????# ## | | ???????????????????????????????????????# ## | +----------------------------------------------------+ Best States ------------- Heat Dissipation 38 Energy Generation 14 Energy Capacity 160 Matter Stores 300 Matter Capacity 300 Sight Range 18 Terrain Scan Range 16 Terrain Scan Density 10 Armor Coverage 150 Evasion (%) 40 Recoil Reduction 2 Item Schematics ----------------- None Robot Schematics ------------------ None Fabricated ------------ Nothing Repaired ---------- Lgt. Treads | 17% | -9/Materials Hvy. Flail | 21% | -9/Materials Hvy. Mace | 66% | -9/Materials Studied --------- Mni. Grenade Launcher | -9/Materials | Hacked Lgt. Treads | -9/Materials | Hacked Lgt. Ion Engine | -9/Materials | Hacked Alien Tech Used ----------------- None Achievements -------------- Ambidextrous Challenges ------------ None Game ------ Seed ScanScrapPlating Manual? 0 Play Time 00:12:42 Cumulative 9.5 hours Start 2025.12.14 @ 01:44:26 End 2025.12.14 @ 01:54:50 Sessions 1 Manual Loads 0 Difficulty Rogue Special Mode None Game No. 38 Rogue 38 Adventurer 0 Explorer 0 Win Type - Total 0 Types 0/0/0/0/0/0/0/0/0/0 Lore% 7 Gallery% 18 Achievement% 13 Wizard Run 0 Options --------- Layout 1 ASCII 0 Keyboard 0 Movement Mouse Keybinds 0 Fullscreen 1 Font 24/Smallcaps Map View 50x35 Zoom Use 0% Tactical HUD 1 Map Filters NONE Filters NONE Steam 1 RUN: 4069e2a7-dd5b-4027-a9a3-885c928dec91